Cogmind - Beta 13 @@@ ROGUE MODE // 2024.04.18 @ 21:18:05 Player: Olafz Result: Destroyed by G-47 Trooper with Particle Gun Performance ------------- Evolutions (2) 1000 Regions Visited (5) 1000 Robots Destroyed (72) 360 Value Destroyed (2071) 2071 Prototype IDs (14) 280 Alien Tech Used (0) 0 Bonus (0) 0 TOTAL SCORE: 4711 Bonus ------- None Cogmind --------- Core Integrity 0/550 Matter 295/300 Energy 160/160 System Corruption 0% Temperature Cool (9) Movement Walking (125) Location -8/Storage Parts ------- > --- POWER (2) -------- Light Nuclear Core > --- PROPULSION (3) --- Improved Aluminum Leg Titanium Leg > --- UTILITY (4) ------ Advanced Heat Sink > --- WEAPON (2) ------- Beam Rifle Advanced Beam Rifle > --- INVENTORY (5) ---- Improved Light Armor Plating Hacking Suite Advanced Beam Rifle Scythe Ripper Peak State ------------ > --- POWER ------------ Improved Ion Engine Light Nuclear Core > --- PROPULSION ------- Titanium Leg Cargo Legs > --- UTILITY ---------- Improved Heat Sink Advanced Heat Sink Large Storage Unit Experimental Sensor Array Utility Shielding > --- WEAPON ----------- Advanced Beam Rifle Advanced Beam Rifle > --- INVENTORY -------- Subdweller Power Source Aluminum Leg Trap Scanner Subdweller Optics Power Shielding Light Armor Plating Light Armor Plating Improved Light Armor Plating Hacking Suite Makeshift System Restoration Module Advanced Beam Rifle Advanced Beam Rifle Rocket Launcher Ripper Scrap Shield Fragment [Rating: 54] Favorites ----------- Power Ion Engine Engine Ion Engine Power Core Light Nuclear Core Propulsion Light Treads Treads Light Treads Leg Cargo Legs Wheel Compact Wheel Utility Large Storage Unit Device Cooling System Storage Large Storage Unit Protection Utility Shielding Weapon Medium Laser Energy Gun Medium Laser Energy Cannon Subdweller Beam Cannon Ballistic Gun Battle Rifle Slashing Weapon Ripper Build | -11 -10 -10 -10 -8 -8 ------- Run | Yrd Mat Min Sub Mat Sto Slots Evolved 4 | . . . . 4 . Power 1 | . . . . 1 . Propulsion 1 | . . . . 1 . Utility 2 | . . . . 2 . Weapon . | . . . . . . Parts Attached 77 | . 17 4 27 16 13 Power 19 | . 3 . 8 4 4 Engine 17 | . 3 . 8 3 3 Core 2 | . . . . 1 1 Reactor . | . . . . . . Propulsion 18 | . 6 3 5 2 2 Treads 10 | . 4 3 3 . . Leg 5 | . . . 1 2 2 Wheel 3 | . 2 . 1 . . Hover . | . . . . . . Flight . | . . . . . . Utility 20 | . 4 . 5 5 6 Device 13 | . 2 . 5 3 3 Storage 4 | . 2 . . . 2 Processor . | . . . . . . Hackware . | . . . . . . Protection 3 | . . . . 2 1 Artifact . | . . . . . . Weapon 20 | . 4 1 9 5 1 Energy Gun 13 | . 4 1 3 4 1 Energy Cannon 3 | . . . 3 . . Ballistic Gun 3 | . . . 2 1 . Ballistic Cannon . | . . . . . . Launcher . | . . . . . . Special Weapon . | . . . . . . Impact Weapon . | . . . . . . Slashing Weapon 1 | . . . 1 . . Piercing Weapon . | . . . . . . Special Melee Weapon . | . . . . . . Unidentified Prototypes 2 | . . . . 2 . Parts Lost 23 | . 5 . 2 6 10 Power 7 | . . . . 3 4 Propulsion 4 | . 2 . 1 . 1 Utility 7 | . 1 . . 2 4 Weapon 5 | . 2 . 1 1 1 Highest Loss Streak 5 | . 2 . 1 5 4 To Critical Strikes . | . . . . . . Average Slot Usage (%) 94 | . 97 100 97 77 77 Engine 12 | . 14 14 13 8 6 Treads 20 | . 18 23 26 . . Leg 2 | . . . . 11 15 Wheel 2 | . 7 4 . . . Device 14 | . 13 14 12 20 19 Storage 13 | . 14 14 13 7 8 Protection 1 | . . . . 10 4 Energy Gun 14 | . 27 28 3 8 15 Energy Cannon 5 | . . . 11 2 . Ballistic Gun 6 | . . . 12 3 . Naked Turns . | . . . . . . Heaviest Build 47 | 14 32 31 37 47 40 Greatest Support 81 | 20 40 40 55 65 81 Greatest Overweight (x) 12 | . 1 1 12 . 1 Average Overweight (x) . | . . . . . . Largest Inventory Capacity 15 | . 15 15 15 15 15 Average Capacity 14 | . 14 15 15 15 14 Most Carried 15 | . 15 15 15 15 15 Average Carried 13 | . 10 13 14 11 13 Final Capacity 15 | 8 15 15 15 15 5 Final Carried 15 | 6 13 13 15 15 5 Class Distribution -------------------- 85% | Mutant 10% | Scavenger-Mutant 4% | Derelict-Mutant Dominant Class ---------------- Mutant | -10/Materials Mutant | -10/Mines Mutant | -10/Subcaves Scavenger-Mutant | -8/Materials Mutant | -8/Storage Resources | -11 -10 -10 -10 -8 -8 ----------- Run | Yrd Mat Min Sub Mat Sto Matter Collected 1153 | 200 155 64 379 255 100 Remotely . | . . . . . . Salvage Created 2909 | . 1202 26 540 561 580 Parts 164 | . 60 1 33 36 34 Haulers Intercepted 4 | . 2 . . 1 1 Recyclers Shooed 3 | . 1 . . . 2 Parts Field Recycled . | . . . . . . Retrieved Matter . | . . . . . . Parts Self-Destructed 13 | . . . 13 . . Prevented . | . . . . . . Kills | -11 -10 -10 -10 -8 -8 ------- Run | Yrd Mat Min Sub Mat Sto Combat Hostiles Destroyed 53 | . 19 2 8 12 12 Guns 39 | . 15 2 3 7 12 Cannons 8 | . . . 5 3 . AOE 4 | . 3 . . 1 . Classes Destroyed 12 | . 8 1 2 . 1 Worker 3 | . 2 . . 1 . Builder 3 | . 2 . . 1 . Hauler 4 | . 2 . . 1 1 Recycler 3 | . 2 . . . 1 Mechanic 1 | . 1 . . . . Operator 2 | . 2 . . . . Watcher 3 | . 3 . . . . Swarmer 9 | . . 2 . 3 4 Grunt 31 | . 19 . . 7 5 Duelist 1 | . . . . . 1 Sentry 5 | . . . 1 2 2 Subdweller 7 | . . . 7 . . Best Kill Streak 4 | . 4 1 2 4 4 Combat Bots Only 4 | . 3 1 2 3 4 Max Kills in Single Turn 3 | . 2 1 1 3 2 Gunslinging 1 | . . . . . 1 Exploded 1 | . 1 . . 1 . Melee . | . . . . . . Uniques/NPCs Destroyed . | . . . . . . Combat | -11 -10 -10 -10 -8 -8 -------- Run | Yrd Mat Min Sub Mat Sto Hostile Shots Fired 308 | . 92 9 37 81 89 Missed 83 | . 30 1 12 22 18 Damage Taken 3865 | . 860 64 725 1275 941 Core 736 | . 99 6 78 412 141 Absorbed by Shields . | . . . . . . Redirected to Shielding 30 | . . . . 15 15 Core Remaining (%) 63 | 100 . . 26 . . Volleys Fired 232 | . 91 7 48 40 46 Largest 2 | . 2 2 2 2 2 Hottest 122 | . 115 100 105 122 122 Shots Fired 426 | . 175 14 84 73 80 Gun 369 | . 175 14 54 46 80 Cannon 57 | . . . 30 27 . Launcher . | . . . . . . Special . | . . . . . . Kinetic 61 | . . . 35 26 . Thermal 308 | . 129 14 49 36 80 Explosive . | . . . . . . Electromagnetic 57 | . 46 . . 11 . Robot Hit Streak 13 | . 9 3 13 5 7 Robot Miss Streak 5 | . 5 2 1 4 4 Penetration Max . | . . . . . . Secondary Targets 4 | . 1 . . . 3 Max Gunslinging Chain 1 | . 1 . . . 1 Shots Hit Robots 250 | . 121 7 36 46 40 Core Hits 117 | . 54 3 14 26 20 Critical Kills 3 | . . . 2 1 . Critical Parts Destroyed . | . . . . . . Critical Strikes 15 | . 9 1 2 1 2 Burn 12 | . 9 1 . . 2 Meltdown 3 | . . . 2 1 . Melee Attacks 1 | . . . 1 . . Impact . | . . . . . . Slashing 1 | . . . 1 . . Piercing . | . . . . . . Sneak Attacks . | . . . . . . Combat Hostiles . | . . . . . . Follow-up Attacks . | . . . . . . Damage Inflicted 4765 | . 1984 98 744 1118 821 Guns 3511 | . 1728 98 365 500 820 Cannons 852 | . . . 379 473 . Explosions 378 | . 256 . . 122 . Melee . | . . . . . . Ramming 24 | . . . . 23 1 Kinetic 453 | . . . 199 254 . Thermal 3627 | . 1476 98 545 688 820 Explosive . | . . . . . . Electromagnetic 661 | . 508 . . 153 . Impact . | . . . . . . Slashing . | . . . . . . Piercing . | . . . . . . Highest Corruption 2 | . 2 2 2 . . Average Corruption 2 | . 2 2 2 . . Corruption Purged . | . . . . . . Corruption Blocked . | . . . . . . Effects 59 | . 7 10 42 . . Message Errors 13 | . 2 2 9 . . Matter Fused 11 | . . 3 8 . . Heat Flow Errors 8 | . . 1 7 . . Energy Discharges 5 | . . 1 4 . . Data Loss (minor) 16 | . 5 2 9 . . Data Loss (major) 4 | . . 1 3 . . Misfires 1 | . . . 1 . . Alerts 1 | . . . 1 . . Overload Shots . | . . . . . . Overflow Damage 16 | . 1 . . 15 . Projectiles 15 | . . . . 15 . Explosions 1 | . 1 . . . . Melee . | . . . . . . Knockbacks . | . . . . . . Impact . | . . . . . . Kinetic . | . . . . . . Secondary . | . . . . . . Self-Inflicted Damage 120 | . 92 . . 28 . Shots 3 | . 2 . . 1 . Rammed . | . . . . . . Targets Rammed 8 | . . . . 7 1 Kicked 8 | . . . . 7 1 Crushed . | . . . . . . Highest Temperature 681 | . 198 212 171 681 190 Average Temperature 114 | . 55 107 73 226 63 Received Heat Transfer 1386 | . 438 . 57 504 387 Effects 21 | . . . . 21 . Shutdowns 4 | . . . . 4 . Energy Bleed 1 | . . . . 1 . Matter Decay 2 | . . . . 2 . Short Circuit 1 | . . . . 1 . Damage (minor) 1 | . . . . 1 . Damage (major) 9 | . . . . 9 . Damage (core) 3 | . . . . 3 . Siege Activations . | . . . . . . Robots Corrupted . | . . . . . . Combat Hostiles . | . . . . . . Parts Fried 2 | . 2 . . . . Impact Corruptions . | . . . . . . Robots Melted 4 | . 1 . 2 1 . Combat Hostiles 4 | . 1 . 2 1 . Parts Melted 19 | . 8 1 4 3 3 Heat Transferred 8483 | . 4509 370 938 1001 1665 Parts Sabotaged . | . . . . . . Parts Stolen . | . . . . . . Parts Stripped . | . . . . . . Power Chain Reactions 4 | . 3 . . 1 . Alert | -11 -10 -10 -10 -8 -8 ------- Run | Yrd Mat Min Sub Mat Sto Peak Influence 315 | . 257 137 . 275 315 Initial 57 | . . 57 . . 22 Average 105 | . 132 46 . 153 101 Maximum Alert Level 1 | . 1 . . 1 1 Low Security (%) 85 | . 84 100 . 56 89 Level 1 14 | . 15 . . 43 10 Level 2 . | . . . . . . Level 3 . | . . . . . . Level 4 . | . . . . . . Level 5 . | . . . . . . High Security . | . . . . . . Max Security . | . . . . . . Squads Dispatched 9 | . 6 . . 2 1 Investigation 3 | . 3 . . . . Extermination . | . . . . . . Reinforcement 6 | . 3 . . 2 1 Assault . | . . . . . . Garrison . | . . . . . . Intercept . | . . . . . . Searches Triggered . | . . . . . . Construction Impeded . | . . . . . . Haulers Reinforced . | . . . . . . Active Scanning Responses . | . . . . . . Cargo Convoy Interrupts . | . . . . . . Stealth | -11 -10 -10 -10 -8 -8 --------- Run | Yrd Mat Min Sub Mat Sto Distress Signals 4 | . . . . 2 2 Communications Jammed . | . . . . . . Distress Signals . | . . . . . . Times Spotted 89 | . 33 7 8 19 22 Peak Tracking Total 6 | . 2 3 2 5 6 Tactical Retreats 8 | . 1 2 . 4 1 Traps | -11 -10 -10 -10 -8 -8 ------- Run | Yrd Mat Min Sub Mat Sto Traps Triggered 8 | . 4 . 4 . . Indirectly . | . . . . . . Trap Hack Attempts . | . . . . . . Triggered . | . . . . . . Disarmed . | . . . . . . Reprogrammed . | . . . . . . Reused . | . . . . . . Traps Extracted . | . . . . . . Installed . | . . . . . . Triggered . | . . . . . . Machines | -11 -10 -10 -10 -8 -8 ---------- Run | Yrd Mat Min Sub Mat Sto Machines Disabled 5 | . . . 1 1 3 Max in Single Turn 1 | . . . 1 1 1 Machines Repaired . | . . . . . . Machines Dismantled . | . . . . . . Machines Sabotaged . | . . . . . . Overloaded Fab Kills . | . . . . . . Hacking | -11 -10 -10 -10 -8 -8 --------- Run | Yrd Mat Min Sub Mat Sto Machines Accessed 9 | . 3 . 2 2 2 Terminals 7 | . 3 . . 2 2 Fabricators . | . . . . . . Repair Stations . | . . . . . . Recycling Units . | . . . . . . Scanalyzers . | . . . . . . Garrison Access . | . . . . . . Total Hacks 25 | . 7 . 10 6 2 Successful 14 | . 1 . 10 2 1 Failed 11 | . 6 . . 4 1 Catastrophic 3 | . 2 . . . 1 Database Lockouts . | . . . . . . Manual 10 | . 7 . . 2 1 Terminals 15 | . 7 . . 6 2 Fabricators . | . . . . . . Repair Stations . | . . . . . . Recycling Units . | . . . . . . Scanalyzers . | . . . . . . Garrison Access . | . . . . . . Terminal Hacks 14 | . 1 . 10 2 1 Record 9 | . . . 9 . . Prototype ID Bank 1 | . . . . 1 . Open Door 1 | . . . . . 1 Branch Access Points 1 | . 1 . . . . Unreport Threat 1 | . . . . 1 . Derelict Proto ID Bank 1 | . . . 1 . . Fabricator Hacks . | . . . . . . Repair Station Hacks . | . . . . . . Recycling Unit Hacks . | . . . . . . Scanalyzer . | . . . . . . Garrison Access Hacks . | . . . . . . Unauthorized Hacks . | . . . . . . Terminals . | . . . . . . Fabricators . | . . . . . . Repair Stations . | . . . . . . Recycling Units . | . . . . . . Scanalyzers . | . . . . . . Garrison Access . | . . . . . . Data Cores Recovered . | . . . . . . Used . | . . . . . . Hacking Detections 5 | . 3 . . 2 . Full Trace Events 3 | . 2 . . 1 . Feedback Events . | . . . . . . Feedback Blocked . | . . . . . . Robot Schematics Acquired . | . . . . . . Robots Built . | . . . . . . Authchips . | . . . . . . Time . | . . . . . . Total Robot Build Rating . | . . . . . . Part Schematics Acquired . | . . . . . . Parts Built . | . . . . . . Authchips . | . . . . . . Time . | . . . . . . Total Part Build Rating . | . . . . . . Parts Repaired . | . . . . . . Time . | . . . . . . Parts Recycled . | . . . . . . Recycled Matter . | . . . . . . Retrieved Matter . | . . . . . . Retrieved Components . | . . . . . . Parts Scanalyzed . | . . . . . . Part Schematics Acquired . | . . . . . . Parts Damaged . | . . . . . . Bothacking | -11 -10 -10 -10 -8 -8 ------------ Run | Yrd Mat Min Sub Mat Sto Used RIF Installer . | . . . . . . Robots Hacked . | . . . . . . Non-combat . | . . . . . . Combat . | . . . . . . Robot Hacks Applied . | . . . . . . Relay Couplers Released . | . . . . . . Fabnet Peak Effective % . | . . . . . . Robots Rewired . | . . . . . . Allies Hacked . | . . . . . . Hacks Repelled . | . . . . . . Allies | -11 -10 -10 -10 -8 -8 -------- Run | Yrd Mat Min Sub Mat Sto Total Allies . | . . . . . . Largest Group . | . . . . . . Highest-Rated Group . | . . . . . . Highest-Rated Ally . | . . . . . . Total Orders . | . . . . . . Ally Attacks . | . . . . . . Total Damage . | . . . . . . Kills . | . . . . . . Allies Corrupted . | . . . . . . Allies Melted . | . . . . . . Intel | -11 -10 -10 -10 -8 -8 ------- Run | Yrd Mat Min Sub Mat Sto Robot Analysis Total . | . . . . . . Derelict Logs Recovered 2 | . . 1 1 . . Drone Launches . | . . . . . . Drone Recoveries . | . . . . . . Exploration | -11 -10 -10 -10 -8 -8 ------------- Run | Yrd Mat Min Sub Mat Sto Turns Passed 6075 | . 1339 908 2876 431 521 Spaces Moved 3444 | 1 705 592 1684 203 259 Core 1 | . . . 1 . . Treads 2172 | . 283 353 1536 . . Legs 517 | 1 10 . 44 203 259 Wheels 754 | . 412 239 103 . . Hover . | . . . . . . Flight . | . . . . . . Fastest Speed 115 | 120 115 115 120 125 125 Average Speed 147 | 120 141 141 157 126 134 Slowest Speed 650 | 120 240 160 650 130 200 Overloaded Moves . | . . . . . . Propulsion Burnouts . | . . . . . . Robots Hopped . | . . . . . . Cave-ins Triggered . | . . . . . . Exploration Rate (%) 56 | 2 99 100 86 19 35 Regions Visited 5 Branch Regions 3 Pre-discovered Areas 1 | . . 1 . . . Known Exits Taken 2 | . 1 . . 1 . Unknown Exits Taken 3 | 1 . 1 1 . . Scrap Searched 10 | . . 1 9 . . Spaces Dug . | . . . . . . Terrain Destroyed 21 | . 10 . . 11 . Melee . | . . . . . . Projectile 9 | . . . . 9 . AOE 12 | . 10 . . 2 . Terrain Rammed . | . . . . . . Walls Destroyed . | . . . . . . Machines Disabled . | . . . . . . Actions | -11 -10 -10 -10 -8 -8 --------- Run | Yrd Mat Min Sub Mat Sto Total 4015 | . 874 650 1839 304 348 Wait 147 | . 39 34 41 19 14 Move 3439 | . 704 591 1683 202 259 Hop . | . . . . . . Pick Up 45 | . 12 5 10 9 9 Fast Attach 33 | . 3 1 13 9 7 Attach 23 | . 7 . 8 5 3 Detach 15 | . 2 . 7 3 3 Swap 21 | . 7 3 6 2 3 Drop 51 | . 9 9 22 8 3 Fire 232 | . 91 7 48 40 46 Melee 1 | . . . 1 . . Ram . | . . . . . . Kick 8 | . . . . 7 1 Crush . | . . . . . . Escape Stasis . | . . . . . . Rewire . | . . . . . . Trap . | . . . . . . Miscellaneous . | . . . . . . Route ------- -11/Scrapyard -10/Materials (discovered 5 exits: [*Mat x3] / *Min x2) -10/Mines (discovered 3 exits: [*Mat x2] / *Sub) -10/Subcaves (discovered 2 exits: *Mat x2) -8/Materials (discovered 2 exits: Fac / *Sto) -8/Storage History --------- Turn | Location | Event 1 | -11/Scrapyard | Discovered new exit (range 0) 1 | -11/Scrapyard | Entered Materials 313 | -10/Materials | Build established: Mutant 376 | -10/Materials | Discovered new exit (range 10) 555 | -10/Materials | Discovered new exit (range 16) 615 | -10/Materials | Discovered new exit (range 8) 890 | -10/Materials | Discovered new exit (range 5) 1065 | -10/Materials | Discovered new exit (range 14) 1164 | -10/Materials | Identified exit to Mines 1340 | -10/Materials | Entered Mines 1352 | -10/Mines | Found a damaged Exp. Sensor Array with a note attached 1354 | -10/Mines | Found Prototype Device 1423 | -10/Mines | Discovered new exit (range 6) 1438 | -10/Mines | Discovered new exit (range 10) 1573 | -10/Mines | Received a Rocket Launcher from a helpful Derelict 1643 | -10/Mines | Joined a pair of Derelicts in attacking an 0b10 outpost 2234 | -10/Mines | Discovered new exit (range 10) 2248 | -10/Mines | Entered Subcaves 2345 | -10/Subcaves | Shifting Twisted Machinery released Riot Gun 2360 | -10/Subcaves | Discovered new exit (range 8) 2364 | -10/Subcaves | Shifting Twisted Machinery released Shrapnel Trap 2895 | -10/Subcaves | A swath of the cavern ceiling suddenly collapsed 2974 | -10/Subcaves | Discovered new exit (range 16) 3482 | -10/Subcaves | Core integrity fell below 50% 4404 | -10/Subcaves | Visited Clippyterm 4408 | -10/Subcaves | Learned 8 Materials zone layouts 5037 | -10/Subcaves | Visited 4L-MR0's lab 5067 | -10/Subcaves | Found Cargo Legs 5069 | -10/Subcaves | Attached Cargo Legs, gained temporary slots: Utility x2 5124 | -10/Subcaves | Entered Materials 5124 | -8/Materials | Evolved 4 slots: Power x1, Propulsion x1, Utility x2 5125 | -8/Materials | Identified exit to Factory 5125 | -8/Materials | Identified exit to Storage 5126 | -8/Materials | Identified Exp. Sensor Array 5284 | -8/Materials | Core integrity fell below 50% 5329 | -8/Materials | Lost 5 parts (2p2u1w) 5555 | -8/Materials | Entered Storage 5606 | -8/Storage | Build established: Scavenger-Mutant 5918 | -8/Storage | Core integrity fell below 20% 5982 | -8/Storage | Lost 4 parts (3p1n) 6023 | -8/Storage | Build established: Mutant 6047 | -8/Storage | Lost 3 parts (1p1u1w) 6076 | -8/Storage | Destroyed by G-47 Trooper with Particle Gun Last Messages --------------- Acquired 5 matter. Exp. Sensor Array destroyed. K-01 Serf collects debris. G-47 Trooper destroyed. R-06 Scavenger collects Imp. Heat Sink. K-01 Serf collects debris. R-06 Scavenger collects Aluminum Leg. Acquired Imp. Aluminum Leg. K-01 Serf collects debris. Acquired Adv. Heat Sink. R-06 Scavenger collects Melee Analysis Suite. K-01 Serf collects debris. Acquired 20 matter. K-01 Serf collects debris. Acquired Beam Rifle. K-01 Serf collects debris. U-05 Engineer builds a Door. K-01 Serf collects debris. Lrg. Storage Unit destroyed. Extracted 6 energy. Map ----- +----------------------------------------------------+ | ?????????????????????????????????????????????????? | | ?????????????????????????????????????????????????? | | ?????????????????????????????????????????????????? | | ?????????????????????????????????????????????????? | | ?????????????????????????????????????????????????? | | ?????????????????????????????????????????????????? | | ?????????????????????????????????????????????????? | | ?????????????????????????????????????????????????? | | ?????????????????????????????????????????????????? | | ?????????????????????????????????????????????????? | | ?????????????????????????????????????????????????? | | ?????????????????????????????????????????????????? | | ?????????????????????????????????????????????????? | | ?????????????????????????????????????????????????? | | ?????????????????????????????????????????????????? | | ?????????????????????#######?????????????????????? | | ?????????????????????# ?????????????????????? | | ?????????????????????# [= "?????????????????????? | | ?????????????????????+ [= ""????????????????????? | | ???????#?????????????# ""????????????????????? | | ??????? ????????????? ?????????????????????? | | ???????# ????????????? " ?????????????????????? | | ???????# ?????????????? "??????????????????????? | | ???????+ ???????????????u "??????????????????????? | | ???????# ??????????######/##############?????????? | | ???????# ????? ???# @ a gag ???????? | | ???????# ?????? ???# =[! g o ???????? | | ?????###+##?####+??# ]!!! g ???????? | | ?????#! #?# ?######+##+######+####?????????? | | ?????# #?# ?# ! #???????????????????? | | ?????# #?# # !![[ "#???????????????????? | | ?????# !#?# # !%[[[ T"#???????????????????? | | ?????# #?+ T [[[[ ""#???????????????????? | | ?????# #?# ## % #???????????????????? | | ?????# # ######## = #???????????????????? | | ###### # %%+ % ! #???????????????????? | | = ## !# ## %% #???????????????????? | | %"" ####+## #####+########?????????????????? | | !|" + ^ #???#%# #?????????????????? | | ]!" # #""T""##### #???#%# #?????????????????? | | """ # #"""""#???# #####%# """ ##????????????????? | | "" # ###########+## %+ """ #????????????????? | | " # #?????# # # ""[##????????????????? | | # ####### # # %!#?????????????????? | | # + / ########?????????????????? | | ##+## #### # #????????????????????????? | | ## #??# # %####"Y"#?????????????????? | | #??# + #???????????????? | | #??######## ###########?????????????????? | | ##### ### #???????????????????????????? | +----------------------------------------------------+ Best States ------------- Heat Dissipation 64 Coolant Potential 50 Energy Generation 21 Energy Capacity 325 Matter Stores 300 Matter Capacity 300 Sight Range 21 Robot Scan Range 20 Terrain Scan Density 10 Additional Mass Support 9 Armor Coverage 150 Utility Shielding 33 Evasion (%) 55 Recoil Reduction 2 Item Schematics ----------------- None Robot Schematics ------------------ None Fabricated ------------ Nothing Alien Tech Used ----------------- None Achievements -------------- None Challenges ------------ None Game ------ Seed GravitonSpectralDetonator Manual? 0 Play Time 00:41:53 Cumulative 69.7 hours Start 2024.04.18 @ 20:30:30 End 2024.04.18 @ 21:18:05 Sessions 1 Manual Loads 0 Difficulty Rogue Special Mode None Game No. 146 Rogue 144 Adventurer 2 Explorer 0 Win Type - Total 1 Types 1/0/0/0/0/0/0/0/0 Lore% 46 Gallery% 46 Achievement% 36 Wizard Run 0 Options --------- Layout 0 ASCII 0 Keyboard 1 Movement Numpad Keybinds 1 Fullscreen 2 Font 18/SmallcapsGlow Map View 76x50 Zoom Use 0% Tactical HUD 1 Map Filters NONE Filters NONE Steam 1 RUN: e166aaca-7a9f-4b0b-8a8c-6fd1cea12d73